bitfinex-derivatives/quotes_SOLF0:USTF0_20241216
["timestamp","ask_amount","ask_price","bid_price","bid_amount"]
[1734350777629,2.8,214.38,214.21,21.27200651]
[1734350777927,2.3337,214.33,214.24,2.3346]
[1734350778225,2.3337,214.33,214.21,2.8]
[1734350778226,2.8,214.33,214.21,2.8]
[1734350778419,2.3343,214.28,214.23,2.3347]
[1734350778620,2.3587,214.32,214.21,2.8]
[1734350779263,2.3587,214.32,214.23,2.3346]
[1734350780623,2.3587,214.32,214.21,2.3348]
[1734350780829,2.3587,214.32,214.2,2.8]
[1734350781134,2.3587,214.32,214.18,18.47200651]
[1734350782026,5.73161529,214.37,214.22,18.47200651]
[1734350782328,7.4844,214.38,214.26,18.47200651]
[1734350782554,7.4844,214.38,214.27,2.8]
[1734350782731,2.3335,214.34,214.29,2.334]
[1734350783436,4.6844,214.38,214.27,5.1342]
[1734350783935,2.3337,214.33,214.27,5.1342]
[1734350784131,4.6844,214.38,214.27,5.1342]
[1734350784532,2.3334,214.35,214.28,2.3341]
[1734350784736,4.6844,214.38,214.28,2.3341]
[1734350785434,4.6844,214.38,214.27,2.8]
[1734350785435,2.3337,214.32,214.27,5.1343]
[1734350785628,7.4844,214.38,214.27,2.8]
[1734350785834,2.3337,214.33,214.27,5.1342]
[1734350786031,4.6844,214.38,214.27,2.8]
[1734350786233,2.2679,214.38,214.27,2.8]
[1734350786428,2.3329,214.4,214.35,2.3334]
[1734350786934,11.13,214.44,214.32,2.8]
[1734350787234,16.85440587,214.44,214.29,2.8]
[1734350787432,18.47200651,214.43,214.29,2.8]
[1734350788533,2.3337,214.33,214.28,2.3341]
[1734350788733,21.27200651,214.39,214.18,2.2849]
[1734350788936,18.47200651,214.35,214.18,2.2849]
[1734350789240,2.8,214.34,214.19,2.8]
[1734350789436,5.1336,214.34,214.19,2.8]
[1734350789635,2.8,214.34,214.19,2.8]
[1734350789832,9.9788,214.38,214.19,2.8]
[1734350790742,7.5877,214.38,214.25,18.47200651]
[1734350791041,7.5877,214.38,214.26,2.8]
[1734350791239,2.3336,214.34,214.28,2.3341]
[1734350791436,7.5877,214.38,214.26,2.8]
[1734350792139,2.3334,214.35,214.26,2.8]
[1734350792841,2.445,214.38,214.29,18.47200651]
[1734350793147,2.3911,214.43,214.34,2.3335]
[1734350793637,2.3911,214.43,214.33,2.8]
[1734350793638,2.3911,214.43,214.33,5.1336]
[1734350793843,20.86310651,214.43,214.25,18.47200651]
[1734350794042,20.86310651,214.43,214.26,2.8]
[1734350794043,18.47200651,214.39,214.26,2.8]
[1734350794342,2.8,214.38,214.21,18.47200651]
[1734350794540,2.8,214.38,214.22,2.8]
[1734350794747,2.3891,214.37,214.25,2.3345]
[1734350794948,2.334,214.3,214.25,2.3345]
[1734350795842,5.1467,214.36,214.24,5.6254458]
[1734350796338,2.3336,214.34,214.28,2.3341]
[1734350796538,2.3467,214.36,214.24,5.6254458]
[1734350796840,32.71502177,214.41,214.24,5.6254458]
[1734350797035,2.3333,214.36,214.31,2.3338]
[1734350797339,32.71502177,214.41,214.29,2.8]
[1734350797541,29.91502177,214.41,214.28,2.8]
[1734350797944,2.3332,214.37,214.29,2.334]
[1734350798144,29.91502177,214.41,214.29,2.334]
[1734350798542,29.91502177,214.41,214.26,2.3343]
[1734350798747,29.91502177,214.37,214.27,2.8]
[1734350798938,32.71502177,214.37,214.27,2.8]
[1734350799541,2.3339,214.31,214.27,2.8]
[1734350799741,32.71502177,214.37,214.27,2.8]
[1734350800340,32.71502177,214.41,214.27,2.8]
[1734350800540,2.8,214.41,214.27,2.8]
[1734350801545,2.8,214.41,214.32,2.3336]
[1734350801546,2.3333,214.37,214.32,2.3336]
[1734350801749,4.7358,214.42,214.27,2.8]
[1734350802042,4.7358,214.42,214.25,2.78]
[1734350802043,2.3342,214.28,214.25,2.78]
[1734350802245,32.69502177,214.36,214.23,5.1146]
[1734350802548,32.69502177,214.36,214.21,2.78]
[1734350802846,32.69502177,214.36,214.12,0.29315]
[1734350802847,29.91502177,214.32,214.2,5.49890782]
[1734350803044,7.4138,214.31,214.2,5.49890782]
[1734350803239,9.7851,214.31,214.2,5.49890782]
[1734350803443,2.3346,214.24,214.2,2.335]
[1734350804254,9.7851,214.31,214.19,5.68887315]
[1734350804541,7.0051,214.31,214.19,5.68887315]
[1734350804749,2.3342,214.29,214.24,2.3345]
[1734350804946,2.3342,214.29,214.19,35.60389492]
[1734350805845,7.0051,214.31,214.21,2.3349]
[1734350806152,7.0051,214.31,214.19,5.68887315]
[1734350806348,2.3346,214.24,214.19,5.68887315]
[1734350806643,7.0051,214.31,214.19,5.68887315]
[1734350807148,2.3346,214.24,214.19,5.68887315]
[1734350807345,7.0051,214.31,214.19,5.68887315]
[1734350807549,18.5776629,214.31,214.19,5.68887315]
[1734350807747,2.3347,214.24,214.19,5.68887315]
[1734350807947,2.8,214.29,214.19,5.68887315]
[1734350808143,2.3345,214.25,214.19,5.68887315]
[1734350808347,2.8,214.29,214.19,5.68887315]
[1734350809046,2.8,214.29,214.19,8.02397315]
[1734350809446,2.3347,214.24,214.19,8.02397315]
[1734350809751,2.3347,214.24,214.2,2.335]
[1734350810452,2.8,214.29,214.15,2.8]
[1734350810847,29.91502177,214.28,214.14,2.8]
[1734350811047,11.59218062,214.27,214.14,2.8]
[1734350811648,11.59218062,214.27,214.14,5.1356]
[1734350811845,11.59218062,214.27,214.14,2.3356]
[1734350812043,2.3354,214.17,214.13,2.3358]
[1734350812253,2.8,214.24,214.11,5.60851965]
[1734350812447,2.8,214.24,214.11,8.40851965]
[1734350812843,2.3355,214.16,214.12,2.3359]
[1734350813747,11.59218062,214.23,214.1,3.11683]
[1734350813954,2.336,214.11,214.1,0.31683]
[1734350815043,2.8,214.17,214.1,0.31683]
[1734350815651,4.6344,214.19,214.1,0.31683]
[1734350815850,4.6344,214.19,214.1,2.65293]
[1734350816253,2.3353,214.18,214.13,2.3358]
[1734350816448,2.3353,214.18,214.1,0.31683]
[1734350816751,2.3386,214.19,214.1,0.31683]
[1734350817051,2.8,214.26,214.11,29.91502177]
[1734350817255,2.8,214.29,214.15,29.91502177]
[1734350817455,2.8,214.29,214.16,2.8]
[1734350817456,2.3349,214.22,214.16,2.8]
[1734350817956,2.3349,214.22,214.1,0.31683]
[1734350817957,24.04715762,214.26,214.11,2.8]
[1734350818156,2.8,214.24,214.11,2.8]
[1734350818553,2.3357,214.15,214.11,2.8]
[1734350818953,2.8,214.24,214.11,2.8]
[1734350819258,2.3353,214.18,214.11,2.8]
[1734350819653,2.8,214.24,214.12,2.3359]
[1734350819853,2.8,214.24,214.11,2.8]
[1734350820157,2.8,214.24,214.15,2.3355]
[1734350820555,2.2644,214.25,214.12,18.43519418]
[1734350820757,2.3348,214.23,214.12,18.43519418]
[1734350820955,2.2644,214.25,214.12,18.43519418]
[1734350821156,25.50519418,214.36,214.16,18.43519418]
[1734350821356,25.50519418,214.36,214.11,2.8]
[1734350821357,2.8,214.32,214.2,18.43519418]
[1734350821658,2.8,214.32,214.21,2.8]
[1734350821860,2.3343,214.27,214.22,2.3348]
[1734350822054,2.4284,214.35,214.21,2.8]
[1734350822261,2.3934,214.3,214.21,2.8]
[1734350823456,2.3934,214.3,214.22,5.62141537]
[1734350823857,2.3338,214.31,214.26,2.3343]
[1734350824260,2.8,214.34,214.22,5.62141537]
[1734350824456,2.3338,214.32,214.26,2.3343]
[1734350824689,4.7886,214.35,214.26,2.8]
[1734350825259,4.7886,214.35,214.22,5.62141537]
[1734350825758,2.3344,214.26,214.22,5.62141537]
[1734350825959,4.7886,214.35,214.2,2.8]
[1734350826156,18.43519418,214.46,214.26,18.43519418]
[1734350826356,5.51700654,214.44,214.3,18.43519418]
[1734350826564,6.9024,214.45,214.31,2.8]
[1734350826961,2.3326,214.42,214.35,2.3333]
[1734350827459,2.3326,214.42,214.31,2.8]
[1734350827964,2.3326,214.42,214.32,2.8]
[1734350828166,2.3325,214.44,214.34,18.43519418]
[1734350828354,2.3325,214.44,214.37,2.3332]
[1734350828556,6.9024,214.45,214.37,2.8]
[1734350828753,9.2348,214.45,214.37,2.8]
[1734350829262,6.9385,214.45,214.39,2.333]
[1734350829964,2.3325,214.44,214.38,2.3331]
[1734350830166,2.4211,214.53,214.37,2.8]
[1734350830459,6.8695,214.52,214.45,2.3323]
[1734350830664,4.5379,214.52,214.44,2.78]
[1734350830865,5.5627395,214.6,214.46,18.43519418]
[1734350831168,2.331,214.58,214.46,18.43519418]
[1734350831368,6.959,214.61,214.46,18.43519418]
[1734350831665,6.959,214.61,214.5,18.43519418]
[1734350831966,6.959,214.61,214.51,2.8]
[1734350832169,2.2041,214.61,214.56,2.3311]
[1734350832365,4.5791,214.69,214.57,2.8]
[1734350832661,7.0105,214.69,214.58,21.23519418]
[1734350832862,7.0105,214.69,214.5,18.43519418]
[1734350832863,2.4314,214.69,214.62,18.43519418]
[1734350833070,2.3197,214.75,214.63,2.8]
[1734350833966,10.2697,214.75,214.63,2.8]
[1734350834165,2.3293,214.73,214.63,2.8]
[1734350834461,10.2697,214.75,214.66,5.53779952]
[1734350834660,2.3297,214.69,214.63,2.8]
[1734350834862,2.8,214.73,214.63,2.8]
[1734350835367,2.3303,214.64,214.59,2.8]
[1734350835666,29.80723683,214.71,214.55,5.55993937]
[1734350835870,2.8,214.67,214.55,5.55993937]
[1734350836070,29.80723683,214.63,214.54,2.8]
[1734350836369,2.3304,214.63,214.55,2.3312]
[1734350836562,32.60723683,214.67,214.55,2.3312]
[1734350836760,32.60723683,214.67,214.54,8.4636586]
[1734350836761,2.2801,214.66,214.54,8.4636586]
[1734350838970,2.2801,214.66,214.55,2.3312]
[1734350838971,2.3305,214.62,214.55,2.3312]
[1734350839168,2.2801,214.66,214.54,8.4636586]
[1734350839573,2.3302,214.65,214.58,2.3309]
[1734350839868,2.2801,214.66,214.54,8.4636586]
[1734350840078,2.2801,214.66,214.54,5.6636586]
[1734350840565,2.3309,214.59,214.54,5.6636586]
[1734350841069,2.8,214.63,214.5,2.8]
[1734350841264,2.331,214.57,214.5,5.1317]
[1734350841569,29.80723683,214.6,214.46,2.8]
[1734350841873,4.5348,214.59,214.46,2.8]
[1734350842070,2.8,214.58,214.46,5.1321]
[1734350842472,2.8,214.58,214.48,5.49113352]
[1734350842866,4.5348,214.59,214.48,5.49113352]
[1734350843170,4.5348,214.59,214.51,2.3316]
[1734350843171,2.3309,214.58,214.51,2.3316]
[1734350843765,2.331,214.57,214.51,2.3316]
[1734350843971,4.5348,214.59,214.48,5.49113352]
[1734350845073,6.8657,214.59,214.52,2.3315]
[1734350845471,4.5348,214.59,214.52,2.3315]
[1734350845773,2.8,214.63,214.53,2.3314]
[1734350845774,2.3307,214.6,214.53,2.3314]
[1734350846270,29.80723683,214.64,214.51,2.8]
[1734350846474,2.2069,214.65,214.51,2.8]
[1734350846876,2.3307,214.6,214.53,2.3314]
[1734350847076,2.3307,214.6,214.51,2.8]
[1734350847271,2.2069,214.65,214.51,2.8]
[1734350847774,29.80723683,214.64,214.48,5.49113352]
[1734350847973,29.80723683,214.64,214.49,2.8]
[1734350848183,2.331,214.57,214.51,2.3316]
[1734350848374,29.80723683,214.64,214.5,2.8]
[1734350848972,2.3307,214.6,214.5,2.8]
[1734350849278,2.8,214.61,214.5,2.8]
[1734350849679,2.3313,214.55,214.5,2.8]
[1734350850276,2.8,214.61,214.5,2.8]
[1734350850472,2.3313,214.54,214.5,2.8]
[1734350850978,29.80723683,214.6,214.5,2.8]
[1734350851580,29.80723683,214.6,214.48,5.49113352]
[1734350852181,2.3314,214.54,214.48,7.82313352]
[1734350852479,29.80723683,214.64,214.48,5.49113352]
[1734350852785,2.3309,214.58,214.48,5.49113352]
[1734350853082,29.80723683,214.64,214.48,5.49113352]
[1734350853284,2.3309,214.58,214.52,2.3315]
[1734350853483,2.8,214.62,214.52,2.8]
[1734350853783,2.3314,214.53,214.48,8.29113352]
[1734350853978,18.37650587,214.6,214.48,8.29113352]
[1734350854283,2.3317,214.52,214.48,8.29113352]
[1734350854475,18.37650587,214.6,214.48,8.29113352]
[1734350854880,2.3317,214.52,214.48,8.29113352]
[1734350855078,18.37650587,214.6,214.48,8.29113352]
[1734350855682,2.8,214.59,214.48,8.29113352]
[1734350855984,29.87117516,214.57,214.43,2.8]
[1734350856283,29.87117516,214.57,214.42,2.8]
[1734350856482,4.6238,214.56,214.44,5.47002327]
[1734350856877,29.87117516,214.53,214.35,32.30407516]
[1734350857081,2.8,214.52,214.37,2.3331]
[1734350857284,29.87117516,214.49,214.36,2.8]
[1734350857587,29.87117516,214.49,214.31,29.87117516]
[1734350857782,29.87117516,214.49,214.35,5.65617232]
[1734350858486,2.3331,214.38,214.35,5.65617232]
[1734350858684,29.87117516,214.49,214.35,5.65617232]
[1734350858887,2.8,214.48,214.35,35.52734748]
[1734350859086,29.87117516,214.53,214.35,35.52734748]
[1734350859087,2.3323,214.45,214.35,35.52734748]
[1734350859283,29.87117516,214.49,214.35,5.65617232]
[1734350859492,2.333,214.39,214.35,5.65617232]
[1734350859680,29.87117516,214.45,214.29,29.87117516]
[1734350859885,7.2281,214.44,214.34,5.53460047]
[1734350861489,2.3332,214.38,214.34,5.53460047]
[1734350862192,2.333,214.39,214.34,7.86810047]
[1734350862486,29.87117516,214.49,214.34,5.53460047]
[1734350862689,6.9051,214.51,214.35,2.88]
[1734350862890,9.7851,214.51,214.35,2.88]
[1734350863293,2.3323,214.46,214.41,2.3327]
[1734350863617,2.3323,214.46,214.34,5.53460047]
[1734350863618,9.7851,214.51,214.4,2.88]
[1734350863795,9.7851,214.51,214.41,2.88]
[1734350864502,2.3319,214.49,214.44,2.3324]
[1734350864895,2.3319,214.49,214.41,32.75117516]
[1734350865191,2.3323,214.45,214.41,2.88]
[1734350865794,2.3138,214.51,214.41,2.88]
[1734350866095,2.3138,214.51,214.34,5.53460047]
[1734350866096,29.87117516,214.49,214.35,2.88]
[1734350866291,2.3329,214.4,214.35,5.2134]
[1734350866499,29.87117516,214.49,214.35,2.88]
[1734350866991,37.92117516,214.49,214.35,2.88]
[1734350868496,2.88,214.48,214.35,2.88]
[1734350868700,37.92117516,214.49,214.35,2.88]
[1734350869598,8.05,214.49,214.35,2.88]
[1734350870003,8.05,214.49,214.37,29.87117516]
[1734350870204,8.05,214.49,214.44,2.3324]
[1734350870205,10.3819,214.49,214.44,2.3324]
[1734350870506,8.05,214.49,214.41,32.75117516]
[1734350870698,8.05,214.49,214.46,2.3322]
[1734350872005,8.05,214.49,214.42,2.88]
[1734350872412,8.05,214.49,214.45,29.87117516]
[1734350872701,8.05,214.49,214.48,2.332]
[1734350872902,8.05,214.49,214.48,5.212]
[1734350874110,8.05,214.49,214.47,5.2121]
[1734350874611,8.05,214.49,214.47,2.88]
[1734350875308,8.05,214.49,214.48,2.332]
[1734350876309,8.05,214.49,214.47,2.88]
[1734350876911,8.05,214.49,214.4,18.37548568]
[1734350877117,8.05,214.49,214.45,5.5129884]
[1734350877409,8.05,214.49,214.48,2.332]
[1734350878109,8.05,214.49,214.47,2.88]
[1734350880010,8.05,214.49,214.45,5.5129884]
[1734350881104,8.05,214.49,214.46,2.3322]
[1734350882607,8.05,214.49,214.47,2.332]
[1734350882805,8.05,214.49,214.48,2.88]
[1734350884513,8.05,214.49,214.48,5.212]
[1734350885812,2.3752,214.59,214.48,23.58748568]
[1734350886017,5.254,214.66,214.52,18.37548568]
[1734350886223,5.254,214.66,214.53,2.88]
[1734350886224,2.3673,214.65,214.53,2.88]
[1734350886719,2.3673,214.65,214.56,18.37548568]
[1734350887108,2.3673,214.65,214.62,2.3305]
[1734350887316,8.3973,214.65,214.62,2.3305]
[1734350887710,8.3973,214.65,214.61,2.88]
[1734350889017,8.3973,214.65,214.61,5.2105]
[1734350889214,6.03,214.65,214.61,2.88]
[1734350889614,6.03,214.65,214.64,2.3302]
[1734350889915,6.03,214.65,214.58,2.88]
[1734350890113,6.03,214.65,214.57,2.88]
[1734350890815,6.03,214.65,214.54,2.3313]
[1734350891121,2.3529,214.64,214.54,2.3313]
[1734350891522,2.3306,214.61,214.53,2.88]
[1734350891718,2.3529,214.64,214.53,2.88]
[1734350891944,2.4096,214.6,214.55,2.3312]
[1734350892114,2.4096,214.6,214.55,7.87885661]
[1734350892319,2.4096,214.6,214.55,5.54765661]
[1734350893827,2.4096,214.6,214.56,2.331]
[1734350894122,6.03,214.65,214.59,18.37548568]
[1734350894317,6.03,214.65,214.6,2.88]
[1734350894523,6.03,214.65,214.64,2.3302]
[1734350895135,2.3997,214.71,214.7,2.3296]
[1734350895425,18.37548568,214.83,214.54,2.423]
[1734350895426,2.88,214.8,214.67,21.25548568]
[1734350895624,2.4198,214.78,214.68,2.88]
[1734350896523,4.0998,214.78,214.68,2.88]
[1734350897824,2.329,214.76,214.68,2.88]
[1734350898328,4.0998,214.78,214.68,2.88]
[1734350898524,2.3292,214.74,214.68,5.2097]
[1734350898723,2.3292,214.74,214.68,2.88]
[1734350898927,4.0998,214.78,214.68,2.88]
[1734350899322,4.0998,214.78,214.69,5.55612074]
[1734350899624,4.0998,214.78,214.61,18.37548568]
[1734350899828,6.9798,214.78,214.62,2.88]
[1734350900132,6.9798,214.78,214.63,5.53719091]
[1734350900321,2.3297,214.69,214.64,2.3302]
[1734350900625,6.9798,214.78,214.63,5.53719091]
[1734350901023,2.3295,214.71,214.63,5.53719091]
[1734350901631,6.9798,214.78,214.63,5.53719091]
[1734350901827,6.9798,214.78,214.65,18.37548568]
[1734350901828,4.0998,214.78,214.65,18.37548568]
[1734350902628,2.329,214.76,214.65,18.37548568]
[1734350902827,4.0998,214.78,214.65,18.37548568]
[1734350903728,2.3291,214.75,214.65,18.37548568]
[1734350904933,4.0998,214.78,214.65,18.37548568]
[1734350905136,4.0998,214.78,214.66,2.88]
[1734350905429,2.3293,214.73,214.66,2.88]
[1734350905636,2.3293,214.73,214.68,2.3298]
[1734350905929,4.0998,214.78,214.69,2.88]
[1734350906126,2.3296,214.71,214.69,2.88]
[1734350906930,4.0998,214.78,214.63,5.53719091]
[1734350907124,18.37548568,214.75,214.57,18.37548568]
[1734350907334,2.88,214.74,214.58,2.88]
[1734350907929,2.3302,214.65,214.6,2.3306]
[1734350908135,2.3302,214.65,214.61,2.88]
[1734350908629,2.3302,214.65,214.61,5.2105]
[1734350909024,2.88,214.74,214.61,8.44184917]
[1734350909228,4.0998,214.78,214.61,26.81733485]
[1734350909427,4.0998,214.78,214.65,18.37548568]
[1734350909630,4.0998,214.78,214.69,2.3296]
[1734350909826,4.0998,214.78,214.65,18.37548568]
[1734350910026,4.0998,214.78,214.66,2.88]
[1734350910229,2.3295,214.72,214.66,2.88]
[1734350910636,2.4198,214.78,214.66,2.88]
[1734350910836,2.3295,214.72,214.67,2.3299]
[1734350911033,2.4198,214.78,214.68,2.88]
[1734350911636,2.3292,214.74,214.69,2.3296]
[1734350911932,4.0798,214.78,214.69,2.3296]
[1734350912134,2.3293,214.74,214.69,2.3296]
[1734350912735,4.0798,214.78,214.69,2.3296]
[1734350912940,4.0798,214.78,214.68,2.88]
[1734350913530,2.3294,214.72,214.68,5.2098]
[1734350913936,4.0798,214.78,214.68,2.88]
[1734350914132,2.3292,214.74,214.68,2.88]
[1734350914336,2.3292,214.74,214.7,2.3295]
[1734350915842,2.3292,214.74,214.68,2.88]
[1734350915843,4.0798,214.78,214.68,2.88]
[1734350916032,4.0798,214.78,214.65,18.37548568]
[1734350916238,4.0798,214.78,214.66,2.88]
[1734350916744,22.45528568,214.78,214.61,5.56184917]
[1734350916939,22.45528568,214.78,214.62,2.88]
[1734350917140,2.3296,214.7,214.66,2.33]
[1734350918147,2.3297,214.69,214.66,2.33]
[1734350918336,2.88,214.76,214.65,2.88]
[1734350918946,2.88,214.76,214.66,2.3299]
[1734350919147,2.88,214.76,214.65,2.88]
[1734350919546,2.3294,214.72,214.68,2.3297]
[1734350919939,2.88,214.76,214.68,2.3297]
[1734350920143,4.0798,214.78,214.68,2.3297]
[1734350920543,2.3296,214.7,214.67,2.3299]
[1734350920739,22.45528568,214.78,214.65,2.88]
[1734350920940,22.45528568,214.78,214.63,2.74]
[1734350921144,11.60632715,214.77,214.63,2.74]
[1734350921348,22.45528568,214.78,214.63,2.74]
[1734350921744,11.61043582,214.77,214.63,2.74]
[1734350922447,18.37548568,214.74,214.56,18.37548568]
[1734350922646,18.37548568,214.74,214.57,5.0709]
[1734350922647,2.3306,214.61,214.57,5.0709]
[1734350922841,14.35535324,214.73,214.57,2.74]
[1734350923043,2.2902,214.72,214.57,2.74]
[1734350923448,2.3306,214.62,214.58,2.3309]
[1734350923745,3.9806,214.62,214.58,5.0709]
[1734350924047,1.65,214.62,214.58,2.74]
[1734350924943,1.65,214.62,214.61,2.3306]
[1734350925745,1.65,214.62,214.58,2.74]
[1734350926340,1.65,214.62,214.59,2.3308]
[1734350926739,1.65,214.62,214.59,2.74]
[1734350927038,1.65,214.62,214.53,2.74]
[1734350927242,2.331,214.57,214.53,2.74]
[1734350927749,2.331,214.57,214.54,2.74]
[1734350928245,1.65,214.62,214.54,2.74]
[1734350928246,2.3309,214.58,214.54,2.74]
[1734350928446,1.65,214.62,214.54,2.74]
[1734350928641,2.3311,214.56,214.54,2.74]
[1734350929040,2.3517,214.61,214.54,2.74]
[1734350929243,2.331,214.58,214.54,2.74]
[1734350929643,2.3517,214.61,214.54,8.42368601]
[1734350930541,2.3517,214.61,214.54,10.75498601]
[1734350930747,2.3517,214.61,214.54,8.42368601]
[1734350930947,2.3517,214.61,214.54,2.74]
[1734350931449,2.241,214.6,214.54,2.74]
[1734350933144,2.331,214.58,214.55,2.3312]
[1734350933343,2.331,214.58,214.52,8.47816451]
[1734350933852,2.331,214.58,214.55,2.3312]
[1734350934547,2.241,214.6,214.48,18.37548568]
[1734350934755,2.3277,214.57,214.48,2.74]
[1734350934954,2.3315,214.53,214.49,2.3318]
[1734350935150,2.3277,214.57,214.48,8.25393345]
[1734350935650,2.3317,214.51,214.48,10.58593345]
[1734350935847,2.3277,214.57,214.48,8.25393345]
[1734350936356,2.3315,214.53,214.49,2.3318]
[1734350936648,2.3277,214.57,214.48,8.25393345]
[1734350936849,2.3317,214.52,214.48,8.25393345]
[1734350938652,2.3317,214.52,214.48,10.58593345]
[1734350938856,2.3317,214.52,214.48,8.25393345]
[1734350939051,2.3318,214.5,214.44,18.37548568]
[1734350939256,18.37548568,214.54,214.36,37.38276987]
[1734350939553,4.5288,214.49,214.37,2.74]
[1734350939848,2.74,214.48,214.38,5.5793961]
[1734350940358,2.3248,214.47,214.38,5.5793961]
[1734350940662,2.3248,214.47,214.36,5.0732]
[1734350940663,2.3329,214.41,214.36,5.0732]
[1734350940851,2.3248,214.47,214.36,2.74]
[1734350941077,2.3248,214.47,214.34,21.11548568]
[1734350941578,2.3248,214.47,214.35,2.74]
[1734350942282,2.3248,214.47,214.34,26.77142113]
[1734350942977,2.3325,214.44,214.36,2.3333]
[1734350943209,2.3325,214.44,214.32,2.74]
[1734350943210,2.74,214.44,214.32,2.74]
[1734350943384,2.74,214.44,214.3,2.74]
[1734350943778,18.37548568,214.42,214.3,2.74]
[1734350943976,18.37548568,214.42,214.3,5.0739]
[1734350943977,2.3335,214.35,214.3,5.0739]
[1734350944279,2.3248,214.47,214.34,18.37548568]
[1734350944585,2.3248,214.47,214.38,2.333]
[1734350945078,2.3248,214.47,214.35,2.74]
[1734350945282,2.3248,214.47,214.38,18.37548568]
[1734350945878,2.3248,214.47,214.4,2.3328]
[1734350946085,2.3248,214.47,214.41,2.74]
[1734350946282,2.3322,214.46,214.41,2.74]
[1734350946914,2.3323,214.45,214.41,5.0726]
[1734350947089,2.3248,214.47,214.41,2.74]
[1734350947483,2.3248,214.47,214.41,5.0727]
[1734350948081,2.3324,214.45,214.39,5.0729]
[1734350948383,3.9748,214.47,214.39,2.74]
[1734350948875,2.3323,214.46,214.4,2.3328]
[1734350949485,2.3323,214.46,214.41,2.3327]
[1734350949790,2.3323,214.46,214.39,2.74]
[1734350949791,6.3069,214.47,214.39,2.74]
[1734350950479,2.3322,214.46,214.39,2.74]
[1734350951180,3.9748,214.47,214.42,2.3326]
[1734350951388,3.9748,214.47,214.39,2.74]
[1734350951389,1.65,214.47,214.39,2.74]
[1734350951592,1.65,214.47,214.42,18.37548568]
[1734350951789,1.65,214.47,214.46,2.3322]
[1734350951988,1.65,214.47,214.46,16.43537213]
[1734350952390,1.65,214.47,214.46,2.62]
[1734350953088,1.65,214.47,214.41,5.57303696]
[1734350953287,1.65,214.47,214.42,2.62]
[1734350953884,1.65,214.47,214.43,11.48317213]
[1734350954687,1.65,214.47,214.42,2.62]
[1734350955479,2.3323,214.46,214.42,2.62]
[1734350955974,2.3325,214.44,214.42,2.62]
[1734350956172,1.65,214.47,214.42,2.62]
[1734350956569,1.65,214.47,214.46,2.3322]
[1734350956968,1.65,214.47,214.43,11.48317213]
[1734350958764,1.65,214.47,214.46,11.48317213]
[1734350958967,1.65,214.47,214.46,13.81537213]
[1734350961065,1.65,214.47,214.46,16.43537213]
[1734350962665,11.48317213,214.58,214.46,16.43537213]
[1734350962666,2.62,214.62,214.46,14.10317213]
[1734350962863,4.6215,214.62,214.51,11.48317213]
[1734350963062,2.3311,214.57,214.52,2.62]
[1734350963263,4.6215,214.62,214.54,11.48317213]
[1734350963462,2.3683,214.62,214.54,11.48317213]
[1734350964467,2.3306,214.61,214.56,2.331]
[1734350964766,2.3683,214.62,214.52,2.62]
[1734350964965,2.3009,214.61,214.52,2.62]
[1734350966469,2.3311,214.57,214.52,4.9514]
[1734350966670,2.3683,214.62,214.52,2.62]
[1734350966962,11.48317213,214.61,214.46,11.48317213]